fUSD/lending_fUSD_20250607
["ID","MTS","AMOUNT","RATE_DAILY","PERIOD"]
[364864939,1749282664902,-480.0,0.00027561,2]
[364864940,1749282664913,-480.0,0.00027561,5]
[364864941,1749282664922,-480.0,0.00027561,5]
[364864942,1749282664933,-480.0,0.00027561,5]
[364864943,1749282664944,-480.0,0.00027561,5]
[364864944,1749282664954,-480.0,0.00027561,5]
[364864945,1749282664964,-151.0,0.00027561,7]
[364864946,1749282664974,-151.0,0.00027561,7]
[364864947,1749282664985,-151.0,0.00027561,7]
[364864948,1749282664995,-151.0,0.00027561,7]
[364864949,1749282665004,-151.0,0.00027561,7]
[364864950,1749282665015,-480.0,0.00027561,5]
[364864951,1749282665025,-191.938449,0.00027561,7]
[364864952,1749282665036,-480.0,0.00027561,5]
[364864953,1749282665047,-480.0,0.00027561,5]
[364864954,1749282665057,-480.0,0.00027561,5]
[364864955,1749282665067,-480.0,0.00027561,5]
[364864956,1749282665078,-480.0,0.00027561,5]
[364864957,1749282665088,-480.0,0.00027561,5]
[364864958,1749282665098,-480.0,0.00027561,5]
[364864959,1749282665108,-480.0,0.00027561,5]
[364864960,1749282665118,-480.0,0.00027561,5]
[364864961,1749282665128,-491.63700926,0.00027561,5]
[364864962,1749282665139,-501.27869741,0.00027561,5]
[364864963,1749282665148,-480.0,0.00027561,5]
[364864964,1749282665159,-445.24,0.00027561,5]
[364864965,1749282665169,-480.0,0.00027561,5]
[364864966,1749282665179,-480.0,0.00027561,5]
[364864967,1749282665189,-495.78,0.00027561,5]
[364864968,1749282665199,-480.0,0.00027561,5]
[364864969,1749282665209,-480.0,0.00027561,5]
[364864970,1749282665220,-419.16639809,0.00027561,5]
[364864971,1749282665231,-480.0,0.00027561,5]
[364864972,1749282665240,-483.6766769,0.00027561,5]
[364864973,1749282665251,-480.0,0.00027561,5]
[364864974,1749282665261,-480.0,0.00027561,5]
[364864975,1749282665271,-480.0,0.00027561,5]
[364864976,1749282665281,-480.0,0.00027561,5]
[364864977,1749282665291,-480.0,0.00027561,5]
[364864978,1749282665300,-480.0,0.00027561,5]
[364864979,1749282665310,-441.9268792,0.00027561,5]
[364864980,1749282665320,-480.0,0.00027561,5]
[364864981,1749282665330,-480.0,0.00027561,5]
[364864982,1749282665340,-480.0,0.00027561,5]
[364864983,1749282665351,-480.0,0.00027561,5]
[364864984,1749282665361,-480.0,0.00027561,5]
[364864985,1749282665371,-493.21366376,0.00027561,5]
[364864986,1749282665381,-480.0,0.00027561,5]
[364864987,1749282665391,-480.0,0.00027561,5]
[364864988,1749282665401,-813.01,0.00027561,5]
[364864989,1749282665412,-480.0,0.00027561,5]
[364864990,1749282665422,-480.0,0.00027561,5]
[364864991,1749282665433,-480.0,0.00027561,5]
[364864992,1749282665443,-314.743866,0.00027561,7]
[364864993,1749282665453,-314.743866,0.00027561,7]
[364864994,1749282665463,-314.743866,0.00027561,7]
[364864995,1749282665474,-314.743866,0.00027561,7]
[364864996,1749282665484,-480.0,0.00027561,5]
[364864997,1749282665495,-569.34428304,0.00027561,5]
[364864998,1749282665506,-480.0,0.00027561,5]
[364864999,1749282665516,-480.0,0.00027561,5]
[364865000,1749282665527,-480.0,0.00027561,5]
[364865001,1749282665536,-480.0,0.00027561,5]
[364865002,1749282665547,-480.0,0.00027561,5]
[364865003,1749282665557,-480.0,0.00027561,5]
[364865004,1749282665567,-493.70842636,0.00027561,5]
[364865005,1749282665577,-480.0,0.00027561,5]
[364865006,1749282665587,-362.06822644,0.00027561,5]
[364865007,1749282665598,-480.0,0.00027561,5]
[364865008,1749282665608,-389.1744737,0.00027561,5]
[364865009,1749282665618,-490.34155793,0.00027561,5]
[364865010,1749282665628,-480.0,0.00027561,5]
[364865011,1749282665638,-480.0,0.00027561,5]
[364865012,1749282665649,-460.0380426,0.00027561,5]
[364865013,1749282665659,-1016.188715,0.00027561,7]
[364865014,1749282665670,-1016.188715,0.00027561,7]
[364865015,1749282665680,-480.0,0.00027561,5]
[364865016,1749282665690,-1016.188715,0.00027561,7]
[364865017,1749282665701,-1016.188715,0.00027561,7]
[364865018,1749282665711,-480.0,0.00027561,5]
[364865019,1749282665721,-428.51499318,0.00027561,5]
[364865020,1749282665731,-186.45063177,0.00027561,5]
[364865021,1749282665741,-480.0,0.00027561,5]
[364865022,1749282665751,-480.0,0.00027561,5]
[364865023,1749282665761,-480.0,0.00027561,2]
[364865024,1749282665771,-323.98550522,0.00027561,5]
[364865025,1749282665781,-480.0,0.00027561,2]
[364865026,1749282665791,-426.84645408,0.00027561,5]
[364865027,1749282665802,-480.0,0.00027561,5]
[364865028,1749282665813,-577.15,0.00027561,5]
[364865029,1749282665823,-480.0,0.00027561,5]
[364865030,1749282665834,-480.0,0.00027561,5]
[364865031,1749282665844,-163.913978,0.00027561,7]
[364865032,1749282665855,-163.913978,0.00027561,7]
[364865033,1749282665867,-480.0,0.00027561,5]
[364865034,1749282665877,-721.261256,0.00027561,7]
[364865035,1749282665887,-480.0,0.00027561,5]
[364865036,1749282665897,-721.261256,0.00027561,7]
[364865037,1749282665907,-163.913978,0.00027561,7]
[364865038,1749282665918,-163.913978,0.00027561,7]
[364865039,1749282665928,-721.261256,0.00027561,7]
[364865040,1749282665938,-721.261256,0.00027561,7]
[364865041,1749282665949,-480.0,0.00027561,5]
[364865042,1749282665960,-509.8,0.00027561,5]
[364865043,1749282665970,-480.0,0.00027561,5]
[364865044,1749282665980,-480.0,0.00027561,5]
[364865045,1749282665990,-224.860027,0.00027561,7]
[364865046,1749282666000,-224.860027,0.00027561,7]
[364865047,1749282666010,-483.29393376,0.00027561,5]
[364865048,1749282666020,-150.00837808,0.00027561,5]
[364865049,1749282666031,-480.0,0.00027561,5]
[364865050,1749282666041,-224.860027,0.00027561,7]
[364865051,1749282666052,-224.860033,0.00027561,7]
[364865052,1749282666063,-446.59940288,0.00027561,5]
[364865053,1749282666073,-480.0,0.00027561,2]
[364865054,1749282666083,-501.31113027,0.00027561,5]
[364865055,1749282666094,-480.0,0.00027561,5]
[364865056,1749282666104,-480.0,0.00027561,5]
[364865057,1749282666115,-172.66743277,0.00027561,5]
[364865058,1749282666125,-476.46498868,0.00027561,5]
[364865059,1749282666135,-480.0,0.00027561,5]
[364865060,1749282666146,-164.03713401,0.00027561,5]
[364865061,1749282666156,-480.0,0.00027561,5]
[364865062,1749282666166,-480.0,0.00027561,5]
[364865063,1749282666177,-504.07705983,0.00027561,5]
[364865064,1749282666187,-480.0,0.00027561,5]
[364865065,1749282666199,-480.0,0.00027561,5]
[364865066,1749282666209,-842.56,0.00027561,5]
[364865067,1749282666219,-480.0,0.00027561,5]
[364865068,1749282666229,-618.47,0.00027561,5]
[364865069,1749282666240,-480.0,0.00027561,5]
[364865070,1749282666251,-248.44864722,0.00027561,5]
[364865071,1749282666262,-480.0,0.00027561,5]
[364865072,1749282666274,-480.0,0.00027561,5]
[364865073,1749282666284,-480.0,0.00027561,5]
[364865074,1749282666295,-480.0,0.00027561,5]
[364865075,1749282666306,-327.769811,0.00027561,7]
[364865076,1749282666317,-327.769811,0.00027561,7]
[364865077,1749282666327,-480.0,0.00027561,5]
[364865078,1749282666339,-367.356215,0.00027561,7]
[364865079,1749282666350,-367.356215,0.00027561,7]
[364865080,1749282666362,-480.0,0.00027561,5]
[364865081,1749282666599,-1163.74,0.00027561,5]
[364865082,1749282666609,-480.0,0.00027561,5]
[364865083,1749282666619,-350.28167534,0.00027561,5]
[364865084,1749282666630,-480.0,0.00027561,5]
[364865085,1749282666640,-327.769811,0.00027561,7]
[364865086,1749282666650,-327.769811,0.00027561,7]
[364865087,1749282666660,-489.64242432,0.00027561,5]
[364865088,1749282666670,-367.356215,0.00027561,7]
[364865089,1749282666680,-480.0,0.00027561,5]
[364865090,1749282666689,-367.356215,0.00027561,7]
[364865091,1749282666699,-480.0,0.00027561,5]
[364865092,1749282666708,-480.0,0.00027561,5]
[364865093,1749282666718,-480.0,0.00027561,5]
[364865094,1749282666727,-480.0,0.00027561,5]
[364865095,1749282666737,-807.84,0.00027561,5]
[364865096,1749282666747,-455.59345022,0.00027561,5]
[364865097,1749282666756,-480.0,0.00027561,5]
[364865098,1749282666766,-478.87960206,0.00027561,5]
[364865099,1749282666775,-480.0,0.00027561,5]
[364865100,1749282666784,-480.0,0.00027561,5]
[364865101,1749282666795,-480.0,0.00027561,5]
[364865102,1749282666805,-484.13160525,0.00027561,5]
[364865103,1749282666815,-480.0,0.00027561,5]
[364865104,1749282666826,-526.5,0.00027561,5]
[364865105,1749282666836,-480.0,0.00027561,5]
[364865106,1749282666845,-722.49,0.00027561,5]
[364865107,1749282666855,-480.0,0.00027561,5]
[364865108,1749282666867,-480.0,0.00027561,5]
[364865109,1749282666878,-480.0,0.00027561,5]
[364865110,1749282666887,-480.0,0.00027561,5]
[364865111,1749282666898,-480.0,0.00027561,5]
[364865112,1749282666909,-480.0,0.00027561,5]
[364865113,1749282666920,-480.0,0.00027561,5]
[364865114,1749282666931,-480.0,0.00027561,5]
[364865115,1749282666941,-480.0,0.00027561,5]
[364865116,1749282666950,-480.0,0.00027561,5]
[364865117,1749282666961,-480.0,0.00027561,5]
[364865118,1749282666970,-658.07,0.00027561,5]
[364865119,1749282666980,-480.0,0.00027561,5]
[364865120,1749282666990,-548.11,0.00027561,5]
[364865121,1749282667000,-480.0,0.00027561,5]
[364865122,1749282667010,-480.0,0.00027561,5]
[364865123,1749282667020,-480.0,0.00027561,5]
[364865124,1749282667030,-480.0,0.00027561,5]
[364865125,1749282667040,-480.0,0.00027561,5]
[364865126,1749282667051,-429.802131,0.00027561,7]
[364865127,1749282667061,-429.802131,0.00027561,7]
[364865128,1749282667071,-484.17604451,0.00027561,5]
[364865129,1749282667081,-480.0,0.00027561,5]
[364865130,1749282667091,-429.802131,0.00027561,7]
[364865131,1749282667101,-1423.16,0.00027561,5]
[364865132,1749282667110,-480.0,0.00027561,5]
[364865133,1749282667120,-429.802131,0.00027561,7]
[364865134,1749282667130,-480.0,0.00027561,5]
[364865135,1749282667140,-480.0,0.00027561,5]
[364865136,1749282667149,-480.0,0.00027561,5]
[364865137,1749282667159,-480.0,0.00027561,5]
[364865138,1749282667169,-676.89,0.00027561,5]
[364865139,1749282667179,-1030.91,0.00027561,5]
[364865140,1749282667188,-300.0,0.00027561,5]
[364865141,1749282667198,-480.0,0.00027561,5]
[364865142,1749282667207,-480.0,0.00027561,5]
[364865143,1749282667217,-480.0,0.00027561,5]
[364865144,1749282667227,-480.0,0.00027561,5]
[364865145,1749282667236,-903.48,0.00027561,5]
[364865146,1749282667246,-545.14,0.00027561,5]
[364865147,1749282667255,-480.0,0.00027561,5]
[364865148,1749282667265,-480.0,0.00027561,5]
[364865149,1749282667275,-480.26838591,0.00027561,5]
[364865150,1749282667284,-580.63,0.00027561,5]
[364865151,1749282667294,-624.11,0.00027561,5]
[364865152,1749282667303,-1746.745216,0.00027561,7]
[364865153,1749282667313,-487.15055125,0.00027561,5]
[364865154,1749282667323,-1746.745216,0.00027561,7]
[364865155,1749282667333,-480.0,0.00027561,5]
[364865156,1749282667342,-503.30597813,0.00027561,5]
[364865157,1749282667353,-480.0,0.00027561,5]
[364865158,1749282667364,-1746.745216,0.00027561,7]
[364865159,1749282667373,-1746.745216,0.00027561,7]
[364865160,1749282667383,-2075.41541554,0.00027561,5]
[364865161,1749282667392,-480.0,0.00027561,5]
[364865162,1749282667402,-480.0,0.00027561,5]
[364865163,1749282667411,-480.0,0.00027561,5]
[364865164,1749282667422,-480.0,0.00027561,5]
[364865165,1749282667431,-480.0,0.00027561,5]
[364865166,1749282667442,-480.0,0.00027561,5]
[364865167,1749282667452,-480.0,0.00027561,5]
[364865168,1749282667461,-480.0,0.00027561,5]
[364865169,1749282667471,-1137.84,0.00027561,5]
[364865170,1749282667480,-480.0,0.00027561,5]
[364865171,1749282667490,-480.0,0.00027561,5]
[364865172,1749282667500,-1026.76,0.00027561,5]
[364865173,1749282667509,-500.37678524,0.00027561,5]
[364865174,1749282667520,-480.0,0.00027561,5]
[364865175,1749282667532,-480.0,0.00027561,5]
[364865176,1749282667542,-480.0,0.00027561,5]
[364865177,1749282667552,-496.73570632,0.00027561,5]
[364865178,1749282667562,-165.60427988,0.00027561,5]
[364865179,1749282667572,-480.0,0.00027561,5]
[364865180,1749282667583,-151.0,0.00027561,7]
[364865181,1749282667594,-480.0,0.00027561,5]
[364865182,1749282667604,-151.0,0.00027561,7]
[364865183,1749282667614,-1323.94,0.00027561,5]
[364865184,1749282667626,-1037.35,0.00027561,5]
[364865185,1749282667636,-480.0,0.00027561,5]
[364865186,1749282667646,-480.0,0.00027561,5]
[364865187,1749282667656,-480.0,0.00027561,5]
[364865188,1749282667666,-472.89036766,0.00027561,5]
[364865189,1749282667676,-314.10546892,0.00027561,5]
[364865190,1749282667687,-480.0,0.00027561,5]
[364865191,1749282667697,-480.0,0.00027561,5]
[364865192,1749282667706,-480.0,0.00027561,5]
[364865193,1749282667716,-487.76254616,0.00027561,5]
[364865194,1749282667725,-480.0,0.00027561,5]
[364865195,1749282667735,-480.0,0.00027561,5]
[364865196,1749282667746,-1212.38,0.00027561,5]
[364865197,1749282667756,-480.0,0.00027561,5]
[364865198,1749282667766,-480.0,0.00027561,5]
[364865199,1749282667776,-480.0,0.00027561,5]
[364865200,1749282667787,-480.0,0.00027561,5]
[364865201,1749282667797,-480.0,0.00027561,5]
[364865202,1749282667806,-547.71077723,0.00027561,5]
[364865203,1749282667818,-480.0,0.00027561,5]
[364865204,1749282667827,-490.86418564,0.00027561,5]
[364865205,1749282667837,-546.31471662,0.00027561,5]
[364865206,1749282667847,-480.0,0.00027561,5]
[364865207,1749282667857,-480.0,0.00027561,5]
[364865208,1749282667870,-480.0,0.00027561,5]
[364865209,1749282667881,-480.0,0.00027561,5]
[364865210,1749282667891,-466.56905724,0.00027561,5]
[364865211,1749282667902,-480.0,0.00027561,5]
[364865212,1749282667913,-713.0,0.00027561,5]
[364865213,1749282667924,-811.35,0.00027561,5]
[364865214,1749282667935,-634.26,0.00027561,5]
[364865215,1749282667947,-480.0,0.00027561,5]
[364865216,1749282667957,-1174.57,0.00027561,5]
[364865217,1749282667967,-737.61,0.00027561,5]
[364865218,1749282667977,-480.0,0.00027561,5]
[364865219,1749282667988,-1789.64,0.00027561,5]
[364865220,1749282667998,-480.0,0.00027561,5]
[364865221,1749282668008,-480.0,0.00027561,5]
[364865222,1749282668019,-494.43292697,0.00027561,5]
[364865223,1749282668029,-151.0,0.00027561,7]
[364865224,1749282668040,-480.0,0.00027561,5]
[364865225,1749282668051,-151.0,0.00027561,7]
[364865226,1749282668061,-436.12102471,0.00027561,5]
[364865227,1749282668072,-480.0,0.00027561,5]
[364865228,1749282668082,-480.0,0.00027561,5]
[364865229,1749282668093,-480.0,0.00027561,5]
[364865230,1749282668103,-509.42927945,0.00027561,5]
[364865231,1749282668113,-480.0,0.00027561,5]
[364865232,1749282668123,-480.0,0.00027561,5]
[364865233,1749282668132,-480.0,0.00027561,5]
[364865234,1749282668143,-480.0,0.00027561,5]
[364865235,1749282668153,-835.68,0.00027561,5]
[364865236,1749282668163,-480.0,0.00027561,5]
[364865237,1749282668173,-480.0,0.00027561,5]
[364865238,1749282668183,-480.0,0.00027561,5]
[364865239,1749282668194,-421.28359058,0.00027561,5]
[364865240,1749282668203,-480.0,0.00027561,5]
[364865241,1749282668213,-480.0,0.00027561,5]
[364865242,1749282668222,-480.0,0.00027561,5]
[364865243,1749282668232,-611.81,0.00027561,5]
[364865244,1749282668243,-1115.25,0.00027561,5]
[364865245,1749282668253,-603.55255205,0.00027561,5]
[364865246,1749282668263,-984.78,0.00027561,5]
[364865247,1749282668273,-480.0,0.00027561,5]
[364865248,1749282668283,-592.62,0.00027561,5]
[364865249,1749282668292,-480.0,0.00027561,5]
[364865250,1749282668302,-428.45265322,0.00027561,5]
[364865251,1749282668311,-480.0,0.00027561,5]
[364865252,1749282668321,-480.0,0.00027561,5]
[364865253,1749282668331,-480.0,0.00027561,5]
[364865254,1749282668342,-480.0,0.00027561,5]
[364865255,1749282668351,-480.0,0.00027561,5]
[364865256,1749282668361,-480.0,0.00027561,5]
[364865257,1749282668371,-2016.63,0.00027561,5]
[364865258,1749282668381,-480.0,0.00027561,5]
[364865259,1749282668391,-480.0,0.00027561,5]
[364865260,1749282668400,-480.0,0.00027561,5]
[364865261,1749282668410,-480.0,0.00027561,5]
[364865262,1749282668420,-1504.99,0.00027561,5]
[364865263,1749282668429,-480.0,0.00027561,5]
[364865264,1749282668439,-652.14,0.00027561,5]
[364865265,1749282668449,-480.0,0.00027561,5]
[364865266,1749282668458,-480.0,0.00027561,5]
[364865267,1749282668468,-480.0,0.00027561,5]
[364865268,1749282668477,-601.8,0.00027561,5]
[364865269,1749282668489,-1444.88,0.00027561,5]
[364865270,1749282668499,-480.0,0.00027561,5]
[364865271,1749282668509,-480.0,0.00027561,5]
[364865272,1749282668519,-196.712187,0.00027561,7]
[364865273,1749282668528,-196.712187,0.00027561,7]
[364865274,1749282668538,-196.712187,0.00027561,7]
[364865275,1749282668547,-196.712187,0.00027561,7]
[364865276,1749282668557,-787.2,0.00027561,5]
[364865277,1749282668567,-480.0,0.00027561,5]
[364865278,1749282668576,-658.72,0.00027561,5]
[364865279,1749282668586,-480.0,0.00027561,5]
[364865280,1749282668596,-853.62,0.00027561,5]
[364865281,1749282668606,-879.54,0.00027561,5]
[364865282,1749282668616,-386.78537358,0.00027561,5]
[364865283,1749282668626,-480.0,0.00027561,5]
[364865284,1749282668636,-480.0,0.00027561,5]
[364865285,1749282668646,-753.65,0.00027561,5]
[364865286,1749282668656,-990.87,0.00027561,5]
[364865287,1749282668665,-480.0,0.00027561,5]
[364865288,1749282668675,-480.0,0.00027561,5]
[364865289,1749282668685,-482.90756565,0.00027561,5]
[364865290,1749282668695,-480.0,0.00027561,5]
[364865291,1749282668705,-499.3343995,0.00027561,5]
[364865292,1749282668715,-480.0,0.00027561,5]
[364865293,1749282668725,-1000.0,0.00027561,5]
[364865294,1749282668735,-480.0,0.00027561,5]
[364865295,1749282668746,-480.0,0.00027561,5]
[364865296,1749282668756,-563.87939294,0.00027561,5]
[364865297,1749282668766,-480.0,0.00027561,5]
[364865298,1749282668776,-850.33,0.00027561,5]
[364865299,1749282668785,-374.25215662,0.00027561,5]
[364865300,1749282668795,-480.0,0.00027561,5]
[364865301,1749282668805,-480.0,0.00027561,5]
[364865302,1749282668815,-480.0,0.00027561,5]
[364865303,1749282668826,-508.43320556,0.00027561,5]
[364865304,1749282668835,-431.69480208,0.00027561,5]
[364865305,1749282668845,-480.0,0.00027561,5]
[364865306,1749282668855,-480.0,0.00027561,5]
[364865307,1749282668866,-494.24,0.00027561,5]
[364865308,1749282668879,-480.0,0.00027561,5]
[364865309,1749282668889,-480.0,0.00027561,5]
[364865310,1749282668900,-151.0,0.00027561,7]
[364865311,1749282668910,-151.0,0.00027561,7]
[364865312,1749282668922,-480.0,0.00027561,5]
[364865313,1749282668932,-614.65,0.00027561,5]
[364865314,1749282668943,-480.0,0.00027561,5]
[364865315,1749282668954,-768.49,0.00027561,5]
[364865316,1749282668964,-424.10423953,0.00027561,5]
[364865317,1749282668973,-480.0,0.00027561,5]
[364865318,1749282669088,-480.0,0.00027561,5]
[364865319,1749282669097,-620.08,0.00027561,5]
[364865320,1749282669107,-542.89405349,0.00027561,5]
[364865321,1749282669116,-702.18,0.00027561,5]
[364865322,1749282669127,-503.40460421,0.00027561,5]
[364865323,1749282669136,-480.0,0.00027561,5]
[364865324,1749282669146,-1066.78,0.00027561,5]
[364865325,1749282669155,-480.0,0.00027561,5]
[364865326,1749282669166,-499.44479943,0.00027561,5]
[364865327,1749282669176,-715.95,0.00027561,5]
[364865328,1749282669186,-900.31077623,0.00027561,2]
[364865329,1749282669196,-480.0,0.00027561,5]
[364865330,1749282669205,-480.0,0.00027561,5]
[364865331,1749282669215,-480.0,0.00027561,5]
[364865332,1749282669224,-480.0,0.00027561,5]
[364865333,1749282669234,-656.54,0.00027561,5]
[364865334,1749282669244,-484.06509942,0.00027561,5]
[364865335,1749282669254,-538.89237035,0.00027561,5]
[364865336,1749282669264,-871.81,0.00027561,5]
[364865337,1749282669274,-674.63,0.00027561,5]
[364865338,1749282669283,-607.29,0.00027561,5]
[364865339,1749282669293,-647.25,0.00027561,5]
[364865340,1749282669303,-480.0,0.00027561,5]
[364865341,1749282669313,-483.61602611,0.00027561,5]
[364865342,1749282669322,-480.0,0.00027561,5]
[364865343,1749282669331,-520.6087155,0.00027561,5]
[364865344,1749282669341,-480.0,0.00027561,5]
[364865345,1749282669351,-480.0,0.00027561,5]
[364865346,1749282669360,-512.76820691,0.00027561,5]
[364865347,1749282669369,-867.98,0.00027561,5]
[364865348,1749282669379,-1182.54,0.00027561,5]
[364865349,1749282669389,-480.0,0.00027561,5]
[364865350,1749282669398,-480.0,0.00027561,5]
[364865351,1749282669409,-1150.03,0.00027561,5]
[364865352,1749282669418,-482.29380278,0.00027561,5]
[364865353,1749282669427,-1505.03,0.00027561,5]
[364865354,1749282669437,-227.39772753,0.00027561,5]
[364865355,1749282669447,-480.0,0.00027561,5]
[364865356,1749282669456,-1473.87,0.00027561,5]
[364865357,1749282669467,-2996.31,0.00027561,5]
[364865358,1749282669477,-2181.17,0.00027561,5]
[364865359,1749282669487,-930.43,0.00027561,5]
[364865360,1749282669496,-480.0,0.00027561,5]
[364865361,1749282669506,-7442.14,0.00027561,5]
[364865362,1749282669515,-480.0,0.00027561,5]
[364865363,1749282669524,-161.295383,0.00027561,7]
[364865364,1749282669533,-5891.72,0.00027561,5]
[364865365,1749282669543,-161.295383,0.00027561,7]
[364865366,1749282669552,-4307.55,0.00027561,5]
[364865367,1749282669562,-161.295383,0.00027561,7]
[364865368,1749282669571,-161.295383,0.00027561,7]
[364865369,1749282669580,-956.19,0.00027561,5]
[364865370,1749282669589,-480.0,0.00027561,5]
[364865371,1749282669598,-798.07,0.00027561,5]
[364865372,1749282669608,-1206.45,0.00027561,5]
[364865373,1749282669617,-480.0,0.00027561,5]
[364865374,1749282669626,-488.36627572,0.00027561,5]
[364865375,1749282669636,-480.0,0.00027561,5]
[364865376,1749282669646,-329.21166625,0.00027561,5]
[364865377,1749282669655,-480.0,0.00027561,5]
[364865378,1749282669665,-494.67842674,0.00027561,5]
[364865379,1749282669674,-1267.21,0.00027561,5]
[364865380,1749282669684,-480.0,0.00027561,5]
[364865381,1749282669694,-491.96750139,0.00027561,5]
[364865382,1749282669703,-458.5351599,0.00027561,5]
[364865383,1749282669713,-5617.32,0.00027561,5]
[364865384,1749282669725,-798.33,0.00027561,5]
[364865385,1749282669734,-480.0,0.00027561,5]
[364865386,1749282669744,-480.0,0.00027561,5]
[364865387,1749282669754,-432.54508676,0.00027561,5]
[364865388,1749282669764,-1111.08,0.00027561,5]
[364865389,1749282669774,-480.0,0.00027561,5]
[364865390,1749282669783,-480.0,0.00027561,5]
[364865391,1749282669793,-1613.36,0.00027561,5]
[364865392,1749282669802,-480.0,0.00027561,5]
[364865393,1749282669812,-480.0,0.00027561,5]
[364865394,1749282669821,-665.13,0.00027561,5]
[364865395,1749282669830,-480.0,0.00027561,5]
[364865396,1749282669839,-480.0,0.00027561,5]
[364865397,1749282669849,-984.27,0.00027561,5]
[364865398,1749282669858,-480.0,0.00027561,5]
[364865399,1749282669871,-515.92049263,0.00027561,5]
[364865400,1749282669880,-10955.06,0.00027561,5]
[364865401,1749282669890,-8194.39,0.00027561,5]
[364865402,1749282669900,-480.0,0.00027561,5]
[364865403,1749282669910,-835.03,0.00027561,5]
[364865404,1749282669921,-3592.23,0.00027561,5]
[364865405,1749282669930,-463.51099575,0.00027561,5]
[364865406,1749282669941,-10000.0,0.00027561,7]
[364865407,1749282669950,-675.89,0.00027561,5]
[364865408,1749282669960,-10000.0,0.00027561,7]
[364865409,1749282669970,-480.0,0.00027561,5]
[364865410,1749282669979,-480.0,0.00027561,5]
[364865411,1749282669989,-480.0,0.00027561,5]
[364865412,1749282669999,-1342.98,0.00027561,5]
[364865413,1749282670008,-490.35252368,0.00027561,5]
[364865414,1749282670017,-10000.0,0.00027561,7]
[364865415,1749282670027,-10000.0,0.00027561,7]
[364865416,1749282670037,-3803.92,0.00027561,5]
[364865417,1749282670047,-2538.94,0.00027561,5]
[364865418,1749282670057,-1427.01,0.00027561,5]
[364865419,1749282670067,-1719.89,0.00027561,5]
[364865420,1749282670077,-1821.11,0.00027561,5]
[364865421,1749282670087,-480.0,0.00027561,5]
[364865422,1749282670096,-10000.0,0.00027561,7]
[364865423,1749282670106,-480.0,0.00027561,5]
[364865424,1749282670116,-10000.0,0.00027561,7]
[364865425,1749282670125,-1325.93,0.00027561,5]
[364865426,1749282670134,-547.00824585,0.00027561,5]
[364865427,1749282670144,-480.0,0.00027561,5]
[364865428,1749282670153,-1072.0,0.00027561,5]
[364865429,1749282670163,-1000.0,0.00027561,5]
[364865430,1749282670172,-1892.42,0.00027561,5]
[364865431,1749282670182,-63362.5,0.00027561,5]
[364865432,1749282670191,-502.85533557,0.00027561,5]
[364865433,1749282670202,-1666.49,0.00027561,5]
[364865434,1749282670211,-769.25,0.00027561,5]
[364865435,1749282670220,-216.41842662,0.00027561,2]
[364865436,1749282670230,-480.0,0.00027561,5]
[364865437,1749282670240,-622.41,0.00027561,5]
[364865438,1749282670249,-480.0,0.00027561,5]